bitfinex-derivatives/quotes_ETHF0:USTF0_20250709
["timestamp","ask_amount","ask_price","bid_price","bid_amount"]
[1752099462151,0.72085,2773.5,2773.4,26.66]
[1752099462352,2.30355,2773.5,2773.4,26.66]
[1752099463052,2.30355,2773.5,2773.4,0.72088]
[1752099463351,2.30355,2773.5,2773.4,26.652]
[1752099463851,2.30355,2773.5,2773.4,26.651]
[1752099464555,1.5827,2773.5,2773.1,1.1991]
[1752099464853,0.72091,2773.3,2773.2,26.65]
[1752099465153,2.30361,2773.3,2773.2,26.65]
[1752099465654,3.57921,2773.3,2773.2,26.646]
[1752099466044,3.57921,2773.3,2773.2,27.36693]
[1752099466249,3.57921,2773.3,2773.2,26.646]
[1752099466551,0.72096,2773.1,2773.0,52.62998]
[1752099466749,0.72098,2773.0,2772.9,0.721]
[1752099467053,2.30368,2773.0,2772.9,27.364]
[1752099467253,1.5827,2773.0,2772.9,27.364]
[1752099467448,2.30368,2773.0,2772.9,26.643]
[1752099467648,1.5827,2773.0,2772.3,4.34669]
[1752099467853,0.7211,2772.6,2772.2,3.2078]
[1752099468047,0.6244,2772.6,2772.5,0.72461]
[1752099468354,0.6244,2772.6,2772.5,0.72111]
[1752099468556,0.6244,2772.6,2772.5,0.72461]
[1752099468950,3.2078,2772.8,2772.7,0.72106]
[1752099469150,3.8322,2772.8,2772.7,27.36256]
[1752099469757,3.8322,2772.8,2772.7,27.35906]
[1752099469957,4.55324,2772.8,2772.7,26.6415]
[1752099470254,3.8322,2772.8,2772.7,27.36156]
[1752099470954,3.8322,2772.8,2772.7,27.35956]
[1752099471155,4.55324,2772.8,2772.6,1.2996]
[1752099471354,3.8322,2772.8,2772.7,26.635]
[1752099471553,4.7905,2772.8,2772.7,27.35606]
[1752099472150,4.7905,2772.8,2772.7,27.35956]
[1752099472654,5.51154,2772.8,2772.7,27.35956]
[1752099472854,5.51154,2772.8,2772.7,26.6385]
[1752099473250,5.51154,2772.8,2772.6,0.72108]
[1752099473455,1.67936,2772.7,2772.6,27.34808]
[1752099473755,1.5827,2772.7,2772.6,27.34808]
[1752099473955,2.30376,2772.7,2772.6,27.34808]
[1752099474155,1.5827,2772.7,2772.6,27.34808]
[1752099474455,1.5827,2772.7,2772.6,0.72108]
[1752099474656,2.30376,2772.7,2772.6,27.35008]
[1752099474953,2.30376,2772.7,2772.6,0.72108]
[1752099475153,1.83848753,2773.3,2772.6,0.72108]
[1752099475154,5.54552404,2774.8,2774.3,0.72065]
[1752099475352,0.9583,2775.2,2774.6,1.83848753]
[1752099475548,0.9583,2775.2,2775.1,0.72044]
[1752099475756,3.2078,2775.4,2775.2,0.72039]
[1752099476054,3.2078,2775.4,2775.2,1.98709]
[1752099476252,3.2078,2775.4,2775.2,1.2667]
[1752099476453,3.2078,2775.4,2775.3,0.72039]
[1752099476856,3.2078,2775.4,2775.2,1.9871]
[1752099477052,4.1661,2775.4,2775.3,0.72039]
[1752099478447,4.1661,2775.4,2775.1,53.244]
[1752099478654,0.72041,2775.2,2775.1,53.244]
[1752099478956,1.67871,2775.2,2775.1,53.244]
[1752099479156,2.89621,2775.2,2775.1,53.244]
[1752099479355,7.1758,2775.2,2774.9,53.216]
[1752099479656,3.2078,2775.0,2774.9,53.216]
[1752099480058,4.1661,2775.0,2774.8,0.7205]
[1752099480259,4.1661,2775.0,2774.9,0.72049]
[1752099480260,3.2078,2775.0,2774.9,0.72049]
[1752099480560,3.2078,2775.0,2774.7,0.72053]
[1752099480760,0.7205,2774.9,2774.8,26.601]
[1752099481060,0.9583,2774.9,2774.5,26.6]
[1752099481255,3.2078,2774.6,2774.5,27.32058]
[1752099481456,4.1661,2774.6,2774.5,27.32058]
[1752099481651,3.2078,2774.6,2774.5,27.32058]
[1752099481855,3.2078,2774.6,2774.5,27.31858]
[1752099482858,3.2078,2774.6,2774.5,0.72058]
[1752099483056,3.2078,2774.6,2774.5,27.31558]
[1752099483457,3.2078,2774.6,2774.5,27.31458]
[1752099483857,3.2078,2774.6,2774.5,0.72058]
[1752099484057,3.2078,2774.6,2774.5,27.31158]
[1752099485464,3.2078,2774.6,2774.5,27.79548694]
[1752099486760,3.2078,2774.6,2774.5,0.48390694]
[1752099486957,3.2078,2774.6,2774.5,27.78949694]
[1752099487763,3.2078,2774.6,2774.5,27.78936544]
[1752099488261,3.8322,2774.6,2774.5,27.78936544]
[1752099488763,3.8322,2774.6,2774.5,27.79166544]
[1752099489063,3.8322,2774.6,2774.5,27.78936544]
[1752099489262,3.8322,2774.6,2774.5,27.79316544]
[1752099489862,3.8322,2774.6,2774.5,1.20816544]
[1752099490058,3.8322,2774.6,2774.5,27.78216544]
[1752099490256,4.764,2774.6,2774.5,27.78216544]
[1752099490466,4.764,2774.6,2774.5,27.78095206]
[1752099490662,4.764,2774.6,2774.5,1.20695206]
[1752099490862,4.764,2774.6,2774.5,27.78095206]
[1752099491162,4.764,2774.6,2774.5,1.20695206]
[1752099491362,4.764,2774.6,2774.5,27.77795206]
[1752099491965,4.764,2774.6,2774.5,1.20695206]
[1752099492166,4.764,2774.6,2774.5,27.77315206]
[1752099492664,3.8322,2774.6,2774.5,27.77315206]
[1752099492864,3.8322,2774.6,2774.5,27.77695206]
[1752099493061,3.8322,2774.6,2774.5,1.20695206]
[1752099493255,3.8322,2774.6,2774.5,27.77195206]
[1752099493755,0.9318,2775.4,2774.6,3.60286]
[1752099493958,3.2078,2775.3,2775.2,0.72041]
[1752099494154,4.7447,2775.3,2775.2,27.28341]
[1752099494861,4.7447,2775.3,2775.1,0.72042]
[1752099495066,0.72046,2775.1,2775.0,27.28146]
[1752099495364,2.25736,2775.1,2775.0,27.28146]
[1752099495759,3.41316,2775.1,2775.0,27.28146]
[1752099495959,3.41316,2775.1,2775.0,0.72046]
[1752099496361,2.6927,2775.1,2775.0,0.72046]
[1752099496864,3.41314,2775.1,2775.0,0.72046]
[1752099497066,0.72049,2775.0,2774.9,0.72047]
[1752099497363,4.53339,2775.0,2774.9,0.72047]
[1752099497565,1.80123,2774.9,2774.3,3.12347]
[1752099497761,3.92836,2774.7,2774.6,0.72053]
[1752099498068,5.46526,2774.7,2774.6,1.21798623]
[1752099498268,4.7447,2774.7,2774.6,1.21798623]
[1752099499569,5.46524,2774.7,2774.6,1.21798623]
[1752099499771,5.46524,2774.7,2774.6,0.49745623]
[1752099500562,0.72071,2774.2,2774.1,0.72068]
[1752099500763,0.72066,2774.3,2774.2,0.72065]
[1752099500961,3.92845,2774.4,2774.3,0.72065]
[1752099501367,0.72068,2774.3,2774.2,0.72066]
[1752099501562,1.65248,2774.3,2774.2,0.72066]
[1752099501768,2.25758,2774.3,2774.2,0.72066]
[1752099502267,2.25758,2774.3,2774.0,0.72069]
[1752099502268,0.72072,2774.1,2774.0,0.72069]
[1752099502660,0.72072,2774.1,2774.0,27.25969]
[1752099502860,3.33853,2774.3,2774.1,0.72067]
[1752099502861,0.72069,2774.2,2774.1,0.72067]
[1752099503064,1.32579,2774.2,2774.1,0.72067]
[1752099503265,2.25759,2774.2,2774.1,0.72447]
[1752099503670,2.25759,2774.2,2774.1,0.72067]
[1752099503869,0.72073,2774.1,2774.0,0.72071]
[1752099504070,2.25763,2774.1,2774.0,0.72071]
[1752099504270,2.25763,2774.1,2774.0,0.72451]
[1752099504470,1.5369,2774.1,2774.0,0.72071]
[1752099504663,0.72073,2774.0,2773.9,0.72073]
[1752099504864,1.5369,2774.0,2773.9,0.72075]
[1752099505068,2.25762,2774.0,2773.9,0.72075]
[1752099505464,1.5369,2774.0,2773.9,0.72075]
[1752099506376,1.5369,2774.0,2773.9,0.72455]
[1752099507572,2.25762,2774.0,2773.9,0.72455]
[1752099507771,1.5369,2774.0,2773.9,0.72455]
[1752099507966,1.5369,2774.0,2773.8,0.72077]
[1752099508172,0.9318,2773.9,2773.8,0.72077]
[1752099508372,1.5369,2773.9,2773.8,0.72457]
[1752099508974,1.5369,2773.9,2773.8,0.72077]
[1752099509169,1.5369,2773.9,2773.8,0.72457]
[1752099510375,3.2078,2774.1,2774.0,0.72072]
[1752099510566,4.70547392,2774.1,2774.0,0.72072]
[1752099510771,3.2078,2774.1,2774.0,0.72452]
[1752099510975,3.92843,2774.4,2774.2,0.72066]
[1752099511271,2.10261506,2774.3,2774.2,0.72066]
[1752099511472,2.82326506,2774.3,2774.2,0.72066]
[1752099511677,2.10261506,2774.3,2774.2,0.72066]
[1752099511875,2.10261506,2774.3,2773.8,1.3152]
[1752099512079,2.21819506,2774.2,2773.9,26.518]
[1752099512280,0.6051,2774.3,2774.1,0.72069]
[1752099512481,1.49744372,2774.2,2774.1,0.72069]
[1752099512779,1.32577,2774.3,2774.2,0.72067]
[1752099512975,2.82320135,2774.3,2774.2,1.21448278]
[1752099513378,2.10253135,2774.3,2774.2,1.21448278]
[1752099513778,2.82318135,2774.3,2774.2,0.72447]
[1752099513978,1.32575,2774.3,2774.2,0.72447]
[1752099514179,2.82288143,2774.3,2774.2,0.72447]
[1752099515779,3.75468143,2774.3,2774.2,0.72067]
[1752099516778,3.03403143,2774.3,2774.2,0.72067]
[1752099517879,3.03403143,2774.3,2774.2,0.72447]
[1752099518080,2.10223143,2774.3,2774.2,0.72447]
[1752099518375,2.10223143,2774.3,2774.2,0.72067]
[1752099518982,2.10223143,2774.3,2774.2,0.72447]
[1752099519185,2.10223143,2774.3,2774.2,1.21393457]
[1752099519485,1.49713143,2774.3,2774.2,1.21393457]
[1752099519688,2.15543143,2774.3,2774.2,2.54723457]
[1752099520583,0.6583,2774.3,2774.2,2.54723457]
[1752099521186,2.14846302,2774.3,2774.2,2.54723457]
[1752099522088,3.09066302,2774.3,2774.2,1.21013457]
[1752099522280,3.81131302,2774.3,2774.2,0.48946457]
[1752099523989,3.81131302,2774.3,2774.2,1.21013457]
[1752099524891,3.09066302,2774.3,2774.2,1.21013457]
[1752099528387,3.09066302,2774.3,2774.2,1.21413457]
[1752099528694,3.09066302,2774.3,2774.2,1.21013457]
[1752099530193,3.09066302,2774.3,2774.2,1.21413457]
[1752099530795,3.09066302,2774.3,2774.2,1.21013457]
[1752099531686,3.81131302,2774.3,2774.2,0.48946457]
[1752099531893,5.03081302,2774.3,2774.2,0.48946457]
[1752099532791,5.03081302,2774.3,2774.2,1.21013457]
[1752099534393,5.03081302,2774.3,2774.2,0.48946457]
[1752099534792,5.03081302,2774.3,2774.2,1.21013457]
[1752099534993,5.03081302,2774.3,2774.2,0.48946457]
[1752099536296,0.72072,2774.0,2773.9,0.00169813]
[1752099536497,0.72072,2774.0,2773.9,0.49222808]
[1752099536498,6.43492294,2774.0,2773.9,0.49222808]
[1752099536697,7.92508596,2774.0,2773.9,0.49222808]
[1752099536897,9.21308596,2774.0,2773.9,0.49222808]
[1752099537998,8.30718302,2774.0,2773.9,0.49222808]
[1752099539199,8.30718302,2774.0,2773.9,0.00169813]
[1752099540804,8.2865827,2774.0,2773.9,0.00169813]
[1752099541001,9.5476827,2774.0,2773.9,0.00169813]
[1752099541604,0.72088,2773.5,2773.4,0.72085]
[1752099541804,2.32138,2773.5,2773.4,0.72085]
[1752099542102,2.32138,2773.5,2773.3,1.2533]
[1752099542103,0.72088,2773.4,2773.3,1.97419]
[1752099542306,2.32138,2773.4,2773.3,1.97819]
[1752099542501,2.32138,2773.4,2773.3,1.2573]
[1752099542807,2.32138,2773.4,2771.5,36.06892]
[1752099542808,1.80234,2773.2,2772.6,1.8027]
[1752099543001,0.72101,2772.9,2772.8,0.72101]
[1752099543203,2.32151,2772.9,2772.8,0.72101]
[1752099544006,2.32151,2772.9,2772.8,0.72501]
[1752099544308,0.6583,2772.9,2772.8,0.72621]
[1752099544506,1.37931,2772.9,2772.8,0.72621]
[1752099544703,2.32151,2772.9,2772.8,0.72621]
[1752099545098,2.32151,2772.9,2772.8,0.72101]
[1752099545304,2.32151,2772.9,2772.8,0.72621]
[1752099546104,2.32151,2772.9,2772.8,0.0052]
[1752099546711,0.72105,2772.8,2772.4,3.09414]
[1752099546910,2.32155,2772.8,2772.7,0.72624]
[1752099547901,0.72103,2772.9,2772.8,0.72104]
[1752099548207,4.1458,2773.0,2772.9,0.72101]
[1752099548208,3.2078,2773.0,2772.9,0.72101]
[1752099548507,3.2078,2773.0,2772.9,5.72621]
[1752099548708,3.2078,2773.0,2772.9,8.23681]
[1752099548903,3.2078,2773.5,2773.4,0.72088]
[1752099549110,10.0,2773.9,2773.7,0.72078]
[1752099549309,0.6583,2773.8,2773.7,0.72078]
[1752099549510,1.37908,2773.8,2773.7,0.72078]
[1752099550111,0.6583,2773.8,2773.7,0.72078]
[1752099550609,1.37908,2773.8,2773.7,0.72078]
[1752099550810,0.6583,2773.8,2773.7,0.72078]
[1752099551006,0.6583,2773.8,2773.5,2.5236]
[1752099551305,0.72083,2773.6,2773.5,1.2755]
[1752099552006,2.28283,2773.6,2773.5,1.2755]
[1752099552212,2.28283,2773.6,2773.5,1.99635]
[1752099552412,0.72091,2773.4,2773.2,1.3139]
[1752099552706,0.72092,2773.3,2773.2,0.7209]
[1752099553304,4.11370294,2773.5,2773.0,3.01175]
[1752099553305,0.90590294,2773.5,2773.0,3.01175]
[1752099553511,0.72087,2773.5,2773.4,0.72088]
[1752099553711,2.81157914,2773.5,2773.4,0.72088]
[1752099553906,1.34487,2773.5,2773.4,0.72088]
[1752099554111,1.3232,2773.7,2773.6,0.72083]
[1752099554308,4.13468244,2773.7,2773.6,0.72083]
[1752099556312,0.72088,2773.5,2773.4,0.72085]
[1752099556817,0.72091,2773.4,2773.3,0.72089]
[1752099557007,2.28291,2773.4,2773.3,0.72089]
[1752099557311,3.75001426,2773.4,2773.3,0.72089]
[1752099558614,0.72094,2773.3,2773.2,0.72091]
[1752099558814,2.28294,2773.3,2773.2,0.72091]
[1752099560518,2.28294,2773.3,2773.2,0.72371]
[1752099561611,0.72093,2773.2,2773.1,0.72093]
[1752099561815,1.562,2773.2,2772.9,2.5437]
[1752099562012,0.72098,2773.1,2773.0,0.72096]
[1752099562214,1.65898,2773.1,2773.0,0.72096]
[1752099562418,0.72098,2773.0,2772.9,3.26469]
[1752099562722,2.28298,2773.0,2772.9,1.93539]
[1752099562924,2.28298,2773.0,2772.9,1.93541]
[1752099564021,2.28298,2773.0,2772.9,1.93821]
[1752099565422,2.28298,2773.0,2772.9,1.93541]
[1752099565625,3.76461148,2773.0,2772.9,1.93541]
[1752099566328,3.76505801,2773.0,2772.9,1.93541]
[1752099566625,3.76505801,2773.0,2772.9,1.93821]
[1752099567017,3.76505801,2773.0,2772.9,1.93541]
[1752099568126,3.04407801,2773.0,2772.5,3.2078]
[1752099568323,1.65903,2772.9,2772.8,0.72104]
[1752099568523,2.28303,2772.9,2772.8,0.72104]
[1752099568824,5.4621,2773.2,2773.0,0.72096]
[1752099569025,3.04437224,2773.1,2773.0,0.72096]
[1752099569230,3.04437224,2773.1,2772.9,0.72099]
[1752099569426,2.42037224,2773.0,2772.9,0.72099]
[1752099569722,3.04437224,2773.0,2772.9,0.72099]
[1752099570027,7.91370155,2773.7,2773.2,0.72091]
[1752099570028,0.72093,2773.3,2773.2,0.72091]
[1752099570224,1.48327003,2773.4,2773.1,1.80238]
[1752099570527,1.48327003,2773.3,2773.2,3.26923]
[1752099570725,1.48327003,2773.3,2773.2,5.11472825]
[1752099571025,0.938,2773.8,2773.7,0.7208]
[1752099571222,2.42095103,2773.8,2773.7,0.7208]
[1752099571818,2.42095103,2773.8,2773.7,1.9184]
[1752099573226,3.04495103,2773.8,2773.7,1.9184]
[1752099573627,2.10695103,2773.8,2773.7,1.9184]
[1752099573827,2.10695103,2773.8,2773.7,1.9212]
[1752099574630,1.48295103,2773.8,2773.7,1.9212]
[1752099575733,2.10695103,2773.8,2773.7,1.9212]
[1752099575932,1.48295103,2773.8,2773.7,1.9212]
[1752099576237,2.10695103,2773.8,2773.7,1.9212]
[1752099576528,1.48295103,2773.8,2773.7,1.9212]
[1752099576736,10.0,2773.9,2773.8,0.72078]
[1752099576932,10.0,2773.9,2773.8,5.15618]
[1752099577526,2.77995764,2773.9,2773.8,10.15758]
[1752099578230,2.77995764,2773.9,2773.8,10.15618]
[1752099578633,0.77995764,2773.9,2773.8,10.15618]
[1752099578833,0.77995764,2773.9,2773.8,12.28924405]
[1752099579237,0.00733764,2773.9,2773.8,12.28924405]
[1752099579437,0.9457,2774.7,2774.0,0.09266236]
[1752099579637,1.6082,2774.7,2774.6,0.72267]
[1752099579940,3.06379728,2774.7,2774.6,0.72267]
[1752099580432,2.11809728,2774.7,2774.6,0.72267]
[1752099580638,3.06379728,2774.7,2774.6,0.72267]
[1752099580836,2.11809728,2774.7,2774.6,0.72267]
[1752099581038,2.11809728,2774.7,2774.6,1.93767]
[1752099581234,0.6625,2774.7,2774.6,1.93767]
[1752099581937,1.6082,2774.7,2774.6,0.72057]
[1752099582938,0.72059,2774.6,2774.4,0.7206]
[1752099583139,0.72059,2774.6,2774.1,6.24704]
[1752099583140,0.6625,2774.5,2774.1,6.24704]
[1752099583541,0.9457,2774.4,2774.3,0.72065]
[1752099583745,1.6082,2774.4,2774.3,0.72065]
[1752099584541,2.32882,2774.4,2774.3,0.72065]
[1752099584946,0.72067,2774.3,2774.2,0.72065]
[1752099585145,2.65327,2774.3,2774.2,0.72065]
[1752099585345,3.59897,2774.3,2774.2,0.72065]
[1752099585937,2.8783,2774.3,2774.2,0.72275]
[1752099586337,2.8783,2774.3,2774.2,0.72065]
[1752099586644,2.8783,2774.3,2774.2,0.72275]
[1752099587046,1.6082,2774.3,2774.2,0.72275]
[1752099587356,1.6082,2774.3,2774.2,1.95205]
[1752099589858,1.98059,2774.6,2774.5,0.72059]
[1752099590059,0.72063,2774.4,2774.3,0.72062]
[1752099590558,0.72061,2774.5,2774.4,0.72061]
[1752099591258,1.66631,2774.5,2774.4,0.72061]
[1752099591658,2.32881,2774.5,2774.4,0.72061]
[1752099593956,0.72072,2774.2,2774.1,0.72066]
[1752099594259,2.32892,2774.2,2774.1,0.72066]
[1752099595057,1.6082,2774.2,2774.1,0.72066]
[1752099595257,1.6082,2774.2,2774.1,0.72276]
[1752099595460,1.6082,2774.2,2774.1,0.72066]
[1752099597363,1.6082,2774.2,2774.1,0.72276]
[1752099598465,3.0533759,2774.2,2774.1,0.72276]
[1752099598859,3.0533759,2774.2,2773.8,3.2078]
[1752099599061,0.9457,2774.1,2774.0,0.7207]
[1752099599263,4.34788501,2774.1,2774.0,0.7207]
[1752099600262,5.06858501,2774.1,2774.0,0.7207]
[1752099601266,4.34788501,2774.1,2774.0,0.7207]
[1752099601466,4.34788501,2774.1,2774.0,0.7228]
[1752099601668,3.40218501,2774.1,2774.0,0.7228]
[1752099601862,3.40218501,2774.1,2774.0,0.7207]
[1752099602665,3.40218501,2774.1,2774.0,0.7228]
[1752099603466,1.44658501,2774.1,2774.0,1.62880177]
[1752099604167,2.10908501,2774.1,2774.0,1.62880177]
[1752099604669,3.05478501,2774.1,2774.0,0.7228]
[1752099604971,4.68148678,2774.1,2774.0,0.72072]
[1752099605359,0.72074,2774.0,2773.9,0.72073]
[1752099605564,1.38325,2773.9,2773.8,3.92856]
[1752099605765,5.02093501,2773.9,2773.8,3.92856]
[1752099606170,4.30018501,2773.9,2773.8,3.92856]
[1752099606370,5.02093501,2773.9,2773.8,3.92856]
[1752099606767,5.20618678,2773.9,2773.5,1.80214]
[1752099606961,0.72085,2773.5,2773.4,3.2078]
[1752099607167,3.00558972,2773.5,2773.4,3.92866]
[1752099607468,3.04528795,2773.5,2773.4,3.92866]
[1752099607669,3.04528795,2773.5,2773.4,0.72086]
[1752099608265,3.04528795,2773.5,2773.4,0.72416]
[1752099608466,3.04528795,2773.5,2773.4,3.92866]
[1752099608971,3.04058795,2773.5,2773.4,3.93196]
[1752099609173,3.04058795,2773.5,2773.4,3.92866]
[1752099609473,2.09958795,2773.5,2773.4,3.93336]
[1752099609770,3.04058795,2773.5,2773.4,3.93336]
[1752099610269,2.09958795,2773.5,2773.4,3.93336]
[1752099610673,0.6625,2773.5,2773.4,3.93336]
[1752099612471,1.6035,2773.5,2773.4,3.93336]
[1752099612868,0.941,2773.8,2773.7,0.7208]
[1752099613068,3.00884771,2773.8,2773.7,0.7208]
[1752099613672,3.72962771,2773.8,2773.7,0.7208]
[1752099613869,3.00884771,2773.8,2773.7,0.7208]
[1752099614676,3.00884771,2773.8,2773.7,0.7255]
[1752099615069,3.72962771,2773.8,2773.7,0.7208]
[1752099616673,3.00884771,2773.8,2773.7,0.7208]
[1752099616973,3.72962771,2773.8,2773.7,0.7208]
[1752099617570,3.00884771,2773.8,2773.7,0.7208]
[1752099617770,3.72962771,2773.8,2773.7,0.7208]
[1752099618368,0.7208,2773.7,2773.6,0.72081]
[1752099618573,0.7208,2773.7,2773.4,3.2078]
[1752099618574,0.72085,2773.6,2773.5,0.72084]
[1752099618771,2.78869771,2773.6,2773.5,0.72084]
[1752099618975,3.72969771,2773.6,2773.5,0.72084]
[1752099620271,0.72085,2773.5,2773.4,3.2078]
[1752099620470,0.72099,2773.1,2773.0,0.72096]
[1752099620678,2.29659,2773.1,2773.0,0.72096]
[1752099621179,0.72101,2773.0,2772.9,0.72099]
[1752099621374,1.35561,2772.9,2772.8,3.92882]
[1752099621582,2.65041,2772.9,2772.8,3.92882]
[1752099621784,3.59141,2772.9,2772.8,0.72102]
[1752099622774,2.8704,2772.9,2772.8,0.72102]
[1752099622979,2.8704,2772.9,2772.8,0.72572]
[1752099623178,2.8704,2772.9,2772.8,0.72102]
[1752099623374,2.8704,2772.9,2772.8,0.72572]
[1752099623877,1.9294,2772.9,2772.8,0.72572]
[1752099624075,3.59141,2772.9,2772.8,0.72572]
[1752099624276,3.59141,2772.9,2772.8,0.0047]
[1752099624582,0.72106,2772.7,2772.6,1.3155]
[1752099624781,2.29666,2772.7,2772.6,1.3155]
[1752099624982,0.72114,2772.4,2772.3,0.72114]
[1752099625179,1.35574,2772.4,2772.3,0.72584]
[1752099625382,2.29674,2772.4,2772.3,1.3202]
[1752099625579,0.72117,2772.3,2772.2,4.4715]
[1752099625882,1.35578,2772.3,2772.2,0.72119]
[1752099626184,0.72115,2772.4,2772.3,0.72114]
[1752099626378,1.35575,2772.4,2772.3,2.00294]
[1752099626579,0.72115,2772.4,2772.3,3.20964]
[1752099626778,1.35575,2772.4,2772.3,3.20964]
[1752099626972,0.72115,2772.4,2772.3,3.20964]
[1752099627381,5.05333768,2773.1,2772.4,1.80285]
[1752099627382,3.2078,2773.1,2772.4,1.80285]
[1752099627577,5.46991496,2773.0,2772.5,5.13559]
[1752099627777,5.46991496,2773.0,2772.3,1.2771]
[1752099627778,0.6346,2772.6,2772.3,1.2771]
[1752099627984,0.6346,2772.6,2772.1,29.3528]
[1752099627985,0.72119,2772.2,2772.1,3.2078]
[1752099628580,0.72119,2772.2,2772.1,3.92902]
[1752099629184,1.3091,2772.5,2772.1,3.2078]
[1752099629383,0.72119,2772.2,2772.1,3.92901]
[1752099629585,0.72119,2772.2,2772.1,3.93371]
[1752099630176,1.3091,2772.5,2772.3,0.72115]
[1752099630383,0.72115,2772.4,2772.3,0.72115]
[1752099631283,2.03023,2772.5,2772.4,0.72114]
[1752099631486,3.60583,2772.5,2772.4,0.72114]
[1752099631685,2.8847,2772.5,2772.4,0.72114]
[1752099632079,4.1488,2772.8,2772.7,0.72106]
[1752099632277,6.92066131,2772.8,2772.7,0.72106]
[1752099633088,0.72109,2772.7,2772.6,0.72107]
[1752099633286,2.29669,2772.7,2772.6,0.72577]
[1752099633485,2.29669,2772.7,2772.6,0.72107]
[1752099633685,2.29669,2772.7,2772.6,0.72577]
[1752099634286,0.72119,2772.3,2772.2,0.72117]
[1752099634486,2.29679,2772.3,2772.2,0.72117]
[1752099634984,0.72119,2772.2,2772.1,3.929]
[1752099635288,0.72126,2772.0,2771.9,0.72124]
[1752099635589,2.29686,2772.0,2771.9,0.72124]
[1752099635781,0.72127,2771.9,2771.8,3.266]
[1752099635986,1.35587,2771.9,2771.8,1.9633]
[1752099636185,2.29687,2771.9,2771.8,1.9633]
[1752099636584,0.7213,2771.8,2771.7,3.92911]
[1752099636784,1.3559,2771.8,2771.7,3.92911]
[1752099636986,1.3079,2771.9,2771.8,0.7213]
[1752099637287,3.60477,2771.9,2771.8,2.0166]
[1752099637591,3.60477,2771.9,2771.8,0.7213]
[1752099637788,3.60477,2771.9,2771.8,0.726]
[1752099639187,1.5756,2771.9,2771.8,0.726]
[1752099639788,2.29687,2771.9,2771.8,0.726]
[1752099640391,0.7213,2771.8,2771.7,3.9291]
[1752099640584,0.72132,2771.7,2771.6,2.01193]
[1752099640787,1.6923,2771.8,2771.7,0.72132]
[1752099641189,2.3376,2771.8,2771.7,0.72132]
[1752099642084,2.3376,2771.8,2771.5,1.242]
[1752099642085,0.72138,2771.6,2771.5,0.72136]
[1752099642290,1.36668,2771.6,2771.5,0.72136]
[1752099642487,0.7214,2771.4,2771.3,3.92923]
[1752099642688,2.3377,2771.4,2771.3,3.92923]
[1752099643892,1.6163,2771.4,2771.3,0.72403]
[1752099644092,0.6453,2771.4,2771.3,0.72403]
[1752099644389,1.6163,2771.4,2771.3,0.72143]
[1752099644687,3.2078,2772.1,2771.6,1.80332]
[1752099644882,0.971,2772.0,2771.4,1.80347]
[1752099645087,0.72132,2771.8,2771.7,0.7213]
[1752099645285,1.36662,2771.8,2771.7,0.7213]
[1752099645484,0.6453,2771.8,2771.7,0.7213]
[1752099645688,1.3666,2771.8,2771.7,0.7213]
[1752099646087,0.72135,2771.6,2771.5,2.05774]
[1752099646293,0.72135,2771.6,2771.5,0.72134]
[1752099647695,1.97524,2771.7,2771.6,0.72135]
[1752099648396,3.59154,2771.7,2771.6,0.72135]
[1752099649296,2.8702,2771.7,2771.2,4.36083]
[1752099649798,0.72137,2771.6,2771.5,0.72135]
[1752099649998,2.33767,2771.6,2771.5,0.72135]
[1752099651195,0.72142,2771.5,2771.4,0.72138]
[1752099651498,2.33772,2771.5,2771.4,0.72138]
[1752099652798,2.33767,2771.5,2771.4,0.72138]
[1752099652997,2.33767,2771.5,2771.4,0.72398]
[1752099653293,0.72137,2771.5,2771.4,0.72398]
[1752099653489,4.1788,2772.2,2771.4,0.005]
[1752099653697,0.72132,2771.8,2771.7,0.72129]
[1752099654002,2.78940511,2771.8,2771.7,0.72129]
[1752099654390,2.06808511,2771.8,2771.7,0.72129]
[1752099655697,2.78938511,2771.8,2771.7,0.72129]
[1752099656094,5.71690279,2771.8,2771.2,1.2208]
[1752099656298,1.42063133,2771.7,2771.2,3.02442]
[1752099656597,5.69863768,2771.8,2771.4,3.2078]
[1752099656598,0.6453,2771.8,2771.4,3.2078]
[1752099656798,0.6453,2771.8,2771.7,0.72392]
[1752099656990,0.72126,2772.0,2771.9,0.72127]
[1752099657196,2.06579817,2772.0,2771.9,0.72127]
[1752099658201,2.78703817,2772.0,2771.9,0.72127]
[1752099658802,3.75803817,2772.0,2771.9,0.72387]
[1752099658990,3.03679817,2772.0,2771.9,0.72387]
[1752099659196,3.75803817,2772.0,2771.9,0.72387]
[1752099659497,1.42049817,2772.0,2771.9,0.72387]
[1752099659698,2.06579817,2772.0,2771.9,1.96977]
[1752099659898,1.42049817,2772.0,2771.9,1.96977]
[1752099660094,5.20875,2772.4,2772.3,0.72117]
[1752099660301,7.26666912,2772.4,2772.3,0.72117]
[1752099660491,8.23766912,2772.4,2772.3,0.72117]
[1752099660700,0.72118,2772.3,2772.2,0.72117]
[1752099660900,2.77909912,2772.3,2772.2,0.72117]
[1752099661099,2.77909912,2772.3,2772.2,0.72377]
[1752099661298,0.72119,2772.2,2772.1,0.7212]
[1752099661499,3.02891912,2772.2,2772.1,0.7212]
[1752099662098,3.75010912,2772.2,2772.1,0.7212]
[1752099662499,3.02891912,2772.2,2772.1,0.7212]
[1752099662702,3.75010912,2772.2,2772.1,0.7212]
[1752099662898,2.05791912,2772.2,2772.1,0.7238]
[1752099664203,3.02891912,2772.2,2772.1,0.7238]
[1752099664408,3.75010912,2772.2,2772.1,0.7238]
[1752099664704,3.75013912,2772.2,2772.1,0.72122]
[1752099665298,0.72126,2772.1,2772.0,0.72123]
[1752099665497,3.75017912,2772.1,2772.0,0.72123]